[Event "28th Hit Open-A 2024"]
[Site "Nova Gorica"]
[Date "2024.01.30"]
[Round "6.17"]
[White "Lavrencic, Matic"]
[Black "Budai, Leonardo"]
[Result "1-0"]
[ECO "D32"]
[WhiteElo "2299"]
[BlackElo "1847"]
[Annotator "TA"]
[PlyCount "103"]
[EventDate "2024.01.22"]
[EventType "swiss"]
[EventCountry "SLO"]
[SourceTitle "playchess.com"]
[Source "ChessBase"]
[SourceQuality "1"]
[TimeControl "5400+30"]

{[%evp 20,103,23,21,44,47,56,31,32,36,31,37,37,15,32,40,60,55,58,59,48,52,54,40,48,37,41,33,33,30,25,17,18,16,33,31,39,25,54,58,78,47,33,29,27,39,24,5,70,70,89,89,100,89,89,89,89,89,105,48,96,89,103,83,100,100,100,100,101,82,101,77,248,246,264,269,220,212,344,344,1475,1265,1485,1300,1602,1516]} 1. Nf3 {[%emt 0:00:04]} d5 {[%emt 0:02:42]} 2. e3 {[%emt 0:00:17]} Nf6 {[%emt 0:00:40]} 3. c4 {[%emt 0:00:31]} e6 {[%emt 0:04:06]} 4. b3 {[%emt 0:00:27]} c5 {[%emt 0:04:53]} 5. cxd5 {[%emt 0:00:26]} exd5 {[%emt 0:01:27]} 6. Bb2 {[%emt 0:00:20]} Nc6 {[%emt 0:01:08]} 7. Bb5 {[%emt 0:00:19]} Be7 {[%emt 0:01:54]} 8. O-O {[%emt 0:03:41]} O-O {[%emt 0:01:02]} 9. d4 {[%emt 0:00:15]} Bg4 {[%emt 0:18:29]} 10. dxc5 {[%emt 0:00:28]} Bxc5 {[%emt 0:06:05]} 11. Nc3 {[%emt 0:06:09]} Qd6 {[%emt 0:09:41]} 12. h3 {[%emt 0:03:56]} Bh5 {[%emt 0:03:31]} 13. Be2 {[%emt 0:01:55]} Rfd8 {[%emt 0:01:46] White is slightly better.} 14. Nb5 {[%emt 0:15:34]} Qe7 {[%emt 0:01:42]} 15. Rc1 {[%emt 0:04:34]} Ne4 {[%emt 0:01:29][%cal Bf6e4,Be4g5,Bg5e6][%mdl 32]} 16. Nfd4 {[%emt 0:00:49]} Bxe2 {[%emt 0:09:19]} 17. Qxe2 {[%emt 0:01:10]} Bxd4 {[%emt 0:02:31]} 18. Nxd4 {[%emt 0:00:27]} Nxd4 {[%emt 0:01:02]} 19. Bxd4 {[%emt 0:00:23]} b6 {[%emt 0:00:40]} 20. Rc2 {[%emt 0:11:14]} Ng5 {[%emt 0:01:14]} 21. Rfc1 {[%emt 0:06:18]} Ne6 {[%emt 0:00:30]} 22. Qd2 {[%emt 0:11:31]} Qd7 {[%emt 0:01:28]} 23. Qc3 {[%emt 0:04:22]} h6 {[%emt 0:04:23]} 24. a4 {[%emt 0:02:54]} Rab8 {[%emt 0:05:06][%cal Ba8b8,Bb8b7,Bb7d7][%mdl 32]} 25. Kh2 {[%emt 0:09:38]} f6 {[%emt 0:02:32]} 26. Kg1 {[%emt 0:06:54]} Rb7 {[%emt 0:04:34]} 27. Qd3 {[%emt 0:01:14]} Kf7 {[%emt 0:01:20]} 28. h4 {[%emt 0:02:54][%cal Bh3h4,Bh4h5][%mdl 32]} Nxd4 {[%emt 0:04:51]} 29. Qxd4 {[%emt 0:00:07]} Qd6 {[%emt 0:01:55]} 30. h5 {[%emt 0:02:16]} Rbd7 {[%emt 0:01:30]} 31. Rd1 {[%emt 0:04:12]} Qe5 {[%emt 0:00:26]} 32. Qg4 {[%emt 0:00:30]} Qe4 {[%emt 0:00:32]} 33. Qe2 {[%emt 0:00:36]} (33. Qxe4 {simplifies} dxe4 34. Rxd7+ Rxd7 35. Rc6) 33... Qe5 {[%emt 0:01:41]} (33... d4 $11 34. Qc4+ Kf8) 34. Rd4 $14 {[%emt 0:00:17]} Qf5 {[%emt 0:00:27]} 35. g4 {[%emt 0:00:14]} Qe5 {[%emt 0:00:31]} 36. Qd3 {[%emt 0:00:19]} Qd6 {[%emt 0:00:28]} 37. Kg2 {[%emt 0:00:43]} Kf8 {[%emt 0:00:35]} 38. Rd2 {[%emt 0:00:28]} Qe6 {[%emt 0:00:27]} 39. Qc3 {[%emt 0:00:52]} (39. b4 $16) 39... Ke7 {[%emt 0:00:29]} (39... Rf7 $14) 40. Qc2 {[%emt 0:00:19]} Kf8 {[%emt 0:00:34]} 41. Qg6 {[%emt 0:00:26]} Qf7 {[%emt 0:00:48]} 42. Qf5 {[%emt 0:00:05] White is much more active.} Ke8 {[%emt 0:00:26]} 43. Rc2 {[%emt 0:00:28]} Rd6 {[%emt 0:00:33]} 44. Kf3 {[%emt 0:00:39][%cal Bg2f3,Bf3f4,Bf4f5,Bf5g6][%mdl 32]} Qd7 {[%emt 0:00:17]} 45. Kf4 {[%emt 0:00:51]} Qxf5+ $2 {[%emt 0:00:37] [#] This costs Black the game.} (45... Re6 $16) 46. Kxf5 $16 {[%emt 0:00:05][%mdl 4096] Endgame. KRR-KRR} R6d7 {[%emt 0:00:28]} 47. Kg6 {[%emt 0:00:54]} Kf8 {[%emt 0:00:13]} 48. Rcd2 {[%emt 0:00:37] Black must now prevent e4.} Ke7 {[%emt 0:00:50]} (48... Rd6 $142 49. Kh7 R6d7) 49. e4 $18 {[%emt 0:00:36][%cal Rd4d5]} (49. Kxg7 {leads to mate.} Ke6+ 50. Kxh6 Rh8+ 51. Kg6 Rg8+ 52. Kh6 Kf7 (52... Rh8+ 53. Kg6 Rg8+ 54. Kh6 Kf7 55. Kh7 Rdd8 56. Rxd5 Rh8#) 53. Kh7 Rdd8 54. Rxd5 Rh8#) 49... f5 $2 {[%emt 0:00:35] [#]} (49... Rc7 50. Rxd5 (50. Kxg7 {gets mated.} Ke6+ 51. Kg6 Rg8+ 52. Kxh6 Kf7 53. Kh7 Rcc8 54. exd5 Rh8#) 50... Rxd5 51. Rxd5 (51. exd5 Kd6 $18) 51... Ke8) 50. Rxd5 {[%emt 0:00:30] White is clearly winning.} Rxd5 {[%emt 0:00:17]} 51. Rxd5 {[%emt 0:00:19]} Rf8 {[%emt 0:00:15]} 52. Rxf5 {[%emt 0:00:08] Weighted Error Value: White=0.09 (flawless) /Black=0.21 (precise) .  Loses game:     	---       	Black=1      Mistake:       	White=1     	Black=4      Inaccurate:     	White=1     	Black=1      OK:         	White=12    	Black=7      Best:        	White=1     	Black=1} 1-0

[Event "28th Hit Open-A 2024"]
[Site "Nova Gorica"]
[Date "2024.01.30"]
[Round "6.18"]
[White "Orsatti, Marcello"]
[Black "Ongut, Tamas Gunes"]
[Result "1-0"]
[ECO "E00"]
[WhiteElo "1918"]
[BlackElo "2310"]
[Annotator "TA"]
[PlyCount "97"]
[EventDate "2024.01.22"]
[EventType "swiss"]
[EventCountry "SLO"]
[SourceTitle "playchess.com"]
[Source "ChessBase"]
[SourceQuality "1"]
[TimeControl "5400+30"]

{[%evp 9,97,3,12,3,14,-12,-14,-12,-3,-8,-9,-15,-8,-14,-18,-38,0,0,-16,-18,-13,-19,-28,-34,-14,-19,-23,-33,-40,-95,-95,-91,-84,-87,-89,-96,-81,-116,-114,-125,-113,-145,-118,-133,-41,-154,-142,-332,-39,-38,-45,-39,-31,-54,-30,-122,-100,-147,-146,-160,-106,-107,-84,-63,0,0,0,0,0,0,0,0,0,0,440,435,441,420,788,760,1263,1349,1108,844,1991,1656,1943,1608,1512,1473]} 1. c4 {[%emt 0:05:31]} e6 {[%emt 0:01:39]} 2. g3 {[%emt 0:00:06]} d5 {[%emt 0:00:12]} 3. Bg2 {[%emt 0:00:05]} Nf6 {[%emt 0:00:45]} 4. d4 {[%emt 0:00:06]} Bb4+ {[%emt 0:00:16]} 5. Bd2 {[%emt 0:01:03]} Be7 {[%emt 0:00:10]} 6. Nf3 {[%emt 0:00:51]} Nbd7 {[%emt 0:00:16]} 7. cxd5 {[%emt 0:03:41]} exd5 {[%emt 0:00:10]} 8. O-O {[%emt 0:00:16] The position is equal.} O-O {[%emt 0:00:09]} 9. Nc3 {[%emt 0:00:33]} c6 {[%emt 0:03:03]} 10. a3 {[%emt 0:02:28]} a5 {[%emt 0:01:04]} 11. Bg5 {[%emt 0:05:08]} Re8 {[%emt 0:00:21]} 12. e3 {[%emt 0:00:54]} Bd6 {[%emt 0:00:24]} 13. Re1 {[%emt 0:01:17]} h6 {[%emt 0:01:56]} 14. Bxf6 {[%emt 0:01:02]} Nxf6 {[%emt 0:00:14]} 15. Rc1 {[%emt 0:02:54]} Bf5 {[%emt 0:00:36]} 16. Na4 {[%emt 0:01:34]} Qe7 {[%emt 0:02:24]} 17. Nc5 {[%emt 0:02:51]} b6 {[%emt 0:05:31]} 18. Nd3 {[%emt 0:04:32]} c5 {[%emt 0:00:11]} 19. Nde5 {[%emt 0:05:46]} (19. Nf4 $15) 19... c4 $17 {[%emt 0:01:08]} 20. Nh4 {[%emt 0:02:54]} Bh7 {[%emt 0:00:33]} 21. Nxc4 {[%emt 0:15:05]} dxc4 {[%emt 0:00:15]} 22. Bxa8 {[%emt 0:00:07]} Rxa8 {[%emt 0:00:04]} 23. Rxc4 {[%emt 0:00:10][%cal Oe3e4]} g5 {[%emt 0:01:40]} 24. Ng2 {[%emt 0:02:06][%cal Oe3e4]} Qe6 {[%emt 0:00:23][%mdl 1024] Black has strong compensation. White is weak on the light squares} 25. Rc3 {[%emt 0:02:57]} g4 {[%emt 0:03:59]} 26. Nf4 {[%emt 0:05:19]} Qe4 {[%emt 0:05:27]} ({Black should play} 26... Qd7 $1 $17 {aiming for ...Ne4.} 27. h4 gxh3) 27. Qc1 {[%emt 0:05:42]} (27. h3 $1 $15) 27... Bf5 {[%emt 0:03:44]} 28. Rc6 $2 {[%emt 0:03:05]} (28. Qd1 $17 {keeps fighting.}) 28... Rd8 $2 {[%emt 0:00:11]} (28... Qf3 $1 $19 {And now ...Be4 would win.} 29. Rxd6 Ne4) 29. Rxb6 $15 {[%emt 0:05:58]} Nh7 {[%emt 0:06:14]} 30. Qc6 {[%emt 0:01:01]} Ng5 {[%emt 0:00:11]} 31. Qxe4 {[%emt 0:00:33]} Bxe4 {[%emt 0:00:07]} 32. Rc1 {[%emt 0:02:02] Against Bc7} (32. Rd1 $1 $11) 32... Nf3+ $17 {[%emt 0:00:13]} 33. Kf1 {[%emt 0:00:36] [#]} (33. Kg2 $142) 33... Bxf4 $1 {[%emt 0:00:19]} 34. gxf4 {[%emt 0:00:43]} Nxh2+ {[%emt 0:01:23]} (34... h5 $142 35. Ke2 h4) 35. Ke2 {[%emt 0:00:22][%cal Oc1c5]} Kg7 {[%emt 0:03:52]} 36. Rb5 {[%emt 0:02:39]} f6 {[%emt 0:01:19]} (36... a4 $1 $15) 37. Rxa5 $11 {[%emt 0:02:02]} Kg6 {[%emt 0:00:33]} 38. Ra7 {[%emt 0:04:07] Re7 would now be deadly.} h5 $1 {[%emt 0:02:36]} 39. Re7 {[%emt 0:00:56]} Bf3+ {[%emt 0:01:30]} 40. Kd3 {[%emt 0:00:23]} h4 {[%emt 0:00:27]} 41. e4 {[%emt 0:01:35][%cal Be3e4,Be4f5][%mdl 32] Black must now prevent Rcc7.} Rg8 $2 {[%emt 0:02:51][%mdl 8192]} (41... h3 $11 {and Black has nothing to worry.}) 42. d5 $18 {[%emt 0:00:54][%cal Bd4d5,Bd5d6,Bd6d7][%mdl 32] Strongly threatening d6.} g3 {[%emt 0:02:22]} 43. fxg3 {[%emt 0:00:17]} h3 {[%emt 0:00:06]} (43... hxg3 $142 44. d6 f5) 44. d6 {[%emt 0:01:38] Threatens to win with d7. White is clearly winning.} f5 {[%emt 0:03:26]} 45. exf5+ {[%emt 0:02:35]} Kf6 {[%emt 0:02:08]} 46. Rcc7 {[%emt 0:00:18]} Rf8 {[%emt 0:07:35] Wards off Rf7+} 47. Re6+ {[%emt 0:00:22]} Kxf5 {[%emt 0:00:10]} 48. Re5+ {[%emt 0:00:16]} Kf6 {[%emt 0:00:24] [#]} 49. d7 $1 {[%emt 0:00:21] What a fight!   Weighted Error Value: White=0.25 (precise) /Black=0.38.  Loses game:     	White=1     	Black=1      Missed win:     	---       	Black=1      Mistake:       	White=4     	Black=4      Inaccurate:     	White=2     	Black=1      OK:         	White=9     	Black=13     Best:        	White=7     	Black=1      Strong:       	---       	Black=2} 1-0

[Event "28th Hit Open-A 2024"]
[Site "Nova Gorica"]
[Date "2024.01.30"]
[Round "6.19"]
[White "Perossa, Nicolas"]
[Black "Hozjan, Erik"]
[Result "1-0"]
[ECO "B51"]
[WhiteElo "2277"]
[BlackElo "1897"]
[Annotator "RC"]
[PlyCount "77"]
[EventDate "2024.01.22"]
[EventType "swiss"]
[EventCountry "SLO"]
[SourceTitle "playchess.com"]
[Source "ChessBase"]
[SourceQuality "1"]
[TimeControl "5400+30"]

1. e4 {[%emt 0:01:46]} c5 {[%emt 0:00:06]} 2. Nf3 {[%emt 0:00:06]} Nc6 {[%emt 0:00:05]} 3. Bb5 {[%emt 0:00:15]} d6 {[%emt 0:00:17]} 4. O-O {[%emt 0:00:30]} Bg4 {[%emt 0:00:58]} 5. Re1 {[%emt 0:00:58]} e5 {[%emt 0:00:17]} 6. c3 {[%emt 0:07:47]} Nf6 {[%emt 0:00:07]} 7. d4 {[%emt 0:25:01]} cxd4 {[%emt 0:00:35]} 8. cxd4 {[%emt 0:06:44]} Nd7 {[%emt 0:00:24]} 9. Be3 {[%emt 0:15:16]} Be7 {[%emt 0:10:16]} 10. Na3 {[%emt 0:15:20]} O-O {[%emt 0:03:08]} 11. Nc2 {[%emt 0:00:13]} f5 {[%emt 0:04:06]} 12. dxe5 {[%emt 0:04:30]} fxe4 {[%emt 0:05:35]} 13. Qd5+ {[%emt 0:00:18]} Kh8 {[%emt 0:00:06]} 14. Nd2 {[%emt 0:03:49]} Rc8 {[%emt 0:03:59]} 15. Nxe4 {[%emt 0:02:54]} Ncxe5 {[%emt 0:01:46]} 16. Rac1 {[%emt 0:04:25]} Rf5 {[%emt 0:02:20]} 17. Qb3 {[%emt 0:01:55]} a6 {[%emt 0:15:41]} 18. Bf1 {[%emt 0:00:12]} b5 {[%emt 0:00:06]} 19. h3 {[%emt 0:03:32]} Bh5 {[%emt 0:03:58]} 20. Nd4 {[%emt 0:02:20]} Bf7 {[%emt 0:01:16]} 21. Rxc8 {[%emt 0:01:05]} Qxc8 {[%emt 0:00:05]} 22. Qa3 {[%emt 0:00:16]} Rh5 {[%emt 0:01:55]} 23. Ng3 {[%emt 0:00:59]} Bf8 {[%emt 0:13:16]} 24. Nxh5 {[%emt 0:00:29]} Bxh5 {[%emt 0:00:05]} 25. Rc1 {[%emt 0:00:18]} Qb7 {[%emt 0:00:29]} 26. Qc3 {[%emt 0:01:29]} Bf7 {[%emt 0:00:49]} 27. a4 {[%emt 0:00:58]} bxa4 {[%emt 0:00:22]} 28. Nc6 {[%emt 0:06:42]} Ng6 {[%emt 0:06:18]} 29. Nd8 {[%emt 0:00:00]} Qd5 {[%emt 0:00:13]} 30. Nxf7+ {[%emt 0:00:00]} Qxf7 {[%emt 0:00:05]} 31. Bxa6 {[%emt 0:00:00]} Nde5 {[%emt 0:01:58]} 32. Bc4 {[%emt 0:00:00]} d5 {[%emt 0:00:27]} 33. Be2 {[%emt 0:00:00]} Nf4 {[%emt 0:00:43]} 34. Bxf4 {[%emt 0:00:00]} Qxf4 {[%emt 0:00:06]} 35. Rd1 {[%emt 0:00:00]} Kg8 {[%emt 0:07:32]} 36. Rxd5 {[%emt 0:00:00]} Bd6 {[%emt 0:00:48]} 37. Rxd6 {[%emt 0:00:00]} Nf3+ {[%emt 0:00:06]} 38. Qxf3 {[%emt 0:00:00]} Qxd6 {[%emt 0:00:06]} 39. Bc4+ {[%emt 0:00:00]} 1-0

[Event "28th Hit Open-A 2024"]
[Site "Nova Gorica"]
[Date "2024.01.30"]
[Round "6.20"]
[White "Horvath, Andras"]
[Black "Djuric, Stefan"]
[Result "0-1"]
[ECO "C45"]
[WhiteElo "1901"]
[BlackElo "2220"]
[Annotator "TA"]
[PlyCount "70"]
[EventDate "2024.01.22"]
[EventType "swiss"]
[EventCountry "SLO"]
[SourceTitle "playchess.com"]
[Source "ChessBase"]
[SourceQuality "1"]
[TimeControl "5400+30"]

{[%evp 11,70,33,33,33,45,9,11,21,10,-10,-1,-20,-13,-19,-10,-20,-15,-8,-23,-25,-19,-14,0,0,0,0,0,0,0,-75,-58,-121,-97,-306,-300,-347,-357,-391,-393,-381,-348,-432,-431,-438,-416,-420,-432,-544,-531,-765,-745,-764,-770,-725,-713,-994,-988,-965,-1010,-968,-875]} 1. e4 {[%emt 0:00:04]} e5 {[%emt 0:10:06]} 2. Nf3 {[%emt 0:00:04]} Nc6 {[%emt 0:00:01]} 3. d4 {[%emt 0:00:20]} exd4 {[%emt 0:00:05]} 4. Nxd4 {[%emt 0:00:11]} Bb4+ {[%emt 0:02:14]} 5. c3 {[%emt 0:00:24]} Bc5 {[%emt 0:00:01]} 6. Nxc6 {[%emt 0:00:19]} bxc6 {[%emt 0:00:21]} 7. Bd3 {[%emt 0:00:10]} d5 {[%emt 0:01:08]} 8. exd5 {[%emt 0:11:01]} Qe7+ {[%emt 0:00:27]} 9. Qe2 {[%emt 0:04:04] The position is equal.} cxd5 {[%emt 0:01:35]} 10. Bb5+ {[%emt 0:05:21]} Bd7 {[%emt 0:00:11]} 11. Bxd7+ {[%emt 0:00:06]} Kxd7 {[%emt 0:00:01]} 12. Be3 {[%emt 0:05:09]} Bxe3 {[%emt 0:00:10]} 13. fxe3 {[%emt 0:03:21]} Rb8 {[%emt 0:03:44]} 14. O-O {[%emt 0:04:52]} Nf6 {[%emt 0:00:08][%cal Bg8f6,Bf6g4,Bg4h2][%mdl 32] Repels Qg4+} 15. Na3 {[%emt 0:17:57]} Rhe8 {[%emt 0:04:33]} 16. Rf3 {[%emt 0:07:04]} Qe5 {[%emt 0:08:25]} 17. Nb5 {[%emt 0:05:56][%cal Oa1f1]} c5 {[%emt 0:11:21]} 18. Nxa7 {[%emt 0:08:47]} Re6 {[%emt 0:04:50] Dodges Qa6} 19. a4 {[%emt 0:05:54]} Ng4 {[%emt 0:00:49][%csl LRe3,LRh2]} 20. Rg3 {[%emt 0:06:53]} (20. g3 $11 {keeps the balance.} f5 (20... Nxe3 21. Rxf7+ Ke8 22. Rf4 $16) 21. Nb5) 20... h5 {[%emt 0:08:14][%cal Og7g6] Black is much more active.} (20... Nxe3 21. Nb5 $11) (20... f5 $5) 21. Rf1 {[%emt 0:01:59]} ({White should try} 21. Nb5 $15) 21... Ke8 {[%emt 0:02:00][%cal Og4h2] And now ...Nxh2! would win.} (21... Nxe3 $2 {perishes.} 22. Rxf7+ Ke8 23. Rfxg7 $18 (23. Rgxg7 Nf5 $18)) 22. Nb5 $2 {[%emt 0:01:24] [#] White does not recover from this.} (22. Rh3 $17 {was worth a try.}) 22... Nxh2 $1 $19 {[%emt 0:01:11][%mdl 512]} 23. Rf4 {[%emt 0:07:11]} (23. Kxh2 $2 {is the wrong capture.} h4 24. Kg1 hxg3 $19) (23. Rgf3 Nxf3+) 23... Qxf4 {[%emt 0:11:25]} 24. exf4 {[%emt 0:00:02]} Rxe2 {[%emt 0:00:02]} 25. Kxh2 {[%emt 0:01:20]} Rxb2 {[%emt 0:03:54][%mdl 4096] Endgame. KRR-KRN} 26. Nc7+ {[%emt 0:01:17]} Kf8 {[%emt 0:03:45]} 27. Nxd5 {[%emt 0:00:14]} Ra2 {[%emt 0:00:38][%cal Ob8b2]} 28. Rg5 {[%emt 0:01:08]} Rbb2 {[%emt 0:01:22]} (28... Rxa4 $2 {loses.} 29. Rxh5 Kg8 30. Ne7+ Kf8 31. Nc6 $18) 29. Ne3 {[%emt 0:00:16] Black is clearly winning.} Re2 {[%emt 0:00:30]} 30. Re5 {[%emt 0:00:26]} Rxa4 {[%emt 0:00:15]} 31. Kg3 {[%emt 0:00:12]} f6 {[%emt 0:02:33]} 32. Re6 {[%emt 0:00:56]} Kf7 {[%emt 0:00:08]} 33. f5 {[%emt 0:00:08]} g5 {[%emt 0:00:51]} 34. Kf3 {[%emt 0:00:24]} Rd2 {[%emt 0:01:25]} 35. c4 {[%emt 0:00:51]} Ra3 {[%emt 0:01:23] Weighted Error Value: White=0.49/Black=0.03 (flawless) .  Loses game:     	White=1     	---        Mistake:       	White=2     	---        Inaccurate:     	White=2     	---        OK:         	White=7     	Black=14     Best:        	White=1     	Black=2      Brilliant:      	---       	Black=1} 0-1

[Event "28th Hit Open-A 2024"]
[Site "Nova Gorica"]
[Date "2024.01.30"]
[Round "6.21"]
[White "Atakay, Mustafa"]
[Black "Gregoric, Andraz"]
[Result "0-1"]
[ECO "E16"]
[WhiteElo "1889"]
[BlackElo "2217"]
[Annotator "TA"]
[PlyCount "90"]
[EventDate "2024.01.22"]
[EventType "swiss"]
[EventCountry "SLO"]
[SourceTitle "playchess.com"]
[Source "ChessBase"]
[SourceQuality "1"]
[TimeControl "5400+30"]

{[%evp 17,90,31,31,16,17,0,0,0,11,0,17,-10,56,45,36,44,42,23,17,0,0,0,0,0,0,0,0,-17,-5,-6,-8,-10,-13,-29,-24,-31,-13,-222,-232,-230,-155,-182,-184,-181,-186,-239,-242,-261,-171,-171,-171,-171,-149,-137,485,-194,-216,-222,-210,-215,-208,-238,-238,-246,-210,-217,-217,-285,-283,-302,-294,-343,-350,-467,-464]} 1. d4 {[%emt 0:06:19]} Nf6 {[%emt 0:00:06]} 2. c4 {[%emt 0:00:04]} e6 {[%emt 0:00:04]} 3. Nf3 {[%emt 0:00:03]} Bb4+ {[%emt 0:00:05]} 4. Bd2 {[%emt 0:00:06]} a5 {[%emt 0:00:04]} 5. g3 {[%emt 0:00:06]} b6 {[%emt 0:00:04]} 6. Bg2 {[%emt 0:00:04]} Bb7 {[%emt 0:00:03]} 7. O-O {[%emt 0:00:05]} O-O {[%emt 0:00:04]} 8. Bf4 {[%emt 0:00:03]} Be7 {[%emt 0:00:04]} 9. Nc3 {[%emt 0:00:08]} Ne4 {[%emt 0:00:19]} 10. Rc1 {[%emt 0:00:04]} d6 {[%emt 0:02:09]} 11. Qd3 {[%emt 0:00:04]} Nxc3 {[%emt 0:02:58]} 12. Rxc3 {[%emt 0:00:05][%cal Of3g5] The position is equal.} Nc6 {[%emt 0:02:11]} 13. e4 {[%emt 0:06:38]} Re8 {[%emt 0:07:53]} (13... Nxd4 $5 14. Nxd4 e5 $16) 14. Rd1 {[%emt 0:03:16]} a4 {[%emt 0:03:37]} (14... e5 $11 15. Be3 (15. dxe5 dxe5 16. Nxe5 Nxe5 $11) 15... exd4 16. Nxd4 Bf6) 15. Be3 {[%emt 0:07:24]} e5 {[%emt 0:03:51]} 16. d5 {[%emt 0:04:43]} Nb4 {[%emt 0:00:40][%csl LRa2,LRd3]} 17. Qb1 {[%emt 0:00:08]} Bc8 {[%emt 0:01:02]} 18. Ne1 {[%emt 0:02:20]} Bg5 {[%emt 0:02:37]} 19. Nc2 {[%emt 0:05:17]} Nxc2 {[%emt 0:00:48]} 20. Qxc2 {[%emt 0:00:12]} Bxe3 {[%emt 0:00:07]} 21. Rxe3 {[%emt 0:00:06]} Bd7 {[%emt 0:06:07]} 22. Bf1 {[%emt 0:00:37]} Qg5 {[%emt 0:00:29]} 23. Bd3 {[%emt 0:00:12]} Rf8 {[%emt 0:00:19]} 24. Rf1 {[%emt 0:00:11]} Bh3 {[%emt 0:00:25]} 25. f4 {[%emt 0:00:08]} exf4 {[%emt 0:01:08]} 26. Rxf4 {[%emt 0:00:06]} a3 {[%emt 0:02:11]} 27. e5 $2 {[%emt 0:09:09]} dxe5 $19 {[%emt 0:01:11]} 28. Rfe4 {[%emt 0:04:11]} f6 {[%emt 0:06:15] [#] And now ...Bf5 would win.} 29. Re2 {[%emt 0:05:29]} axb2 {[%emt 0:01:43]} 30. Qxb2 {[%emt 0:00:14]} Ra5 {[%emt 0:07:47]} 31. d6 {[%emt 0:03:24]} (31. a3 {keeps fighting.}) 31... cxd6 {[%emt 0:00:20]} 32. Qxb6 {[%emt 0:01:30]} Ra3 {[%emt 0:02:14]} (32... Qc1+ 33. Re1 Qa3 34. Rh4 Qxd3 35. Qxa5 $17) 33. Qxd6 {[%emt 0:02:16]} Qc1+ {[%emt 0:00:22]} 34. Re1 {[%emt 0:00:17]} Qd2 $40 {[%emt 0:00:59][%csl Gh3][%cal Rd2g2][%mdl 128] Black goes for the king.} 35. Qd5+ {[%emt 0:01:09]} Rf7 $2 {[%emt 0:00:51][%mdl 8192] [#] The board is on fire. Black has more active pieces.} (35... Kh8 $17 {[%csl Gh3][%cal Rd2g2] keeps the pressure on.} 36. Bf1 Qxd5 (36... Qxa2 $2 37. R4e2 $18) 37. cxd5 Bxf1 38. Rxf1 Rxa2 39. Rxe5 Rd2) 36. Bf1 {[%emt 0:06:31][%mdl 8192] Dodges Qg2+} (36. Rxe5 $1 $18 fxe5 (36... g6 37. Re8+ Kg7 38. Qxf7+ Kh6 39. Qf8+ Kh5 40. R8e5+ f5 41. Be2+) 37. Bxh7+ Kxh7 38. Qxd2) 36... Qxd5 {[%emt 0:00:58]} (36... Qxa2 $2 37. Bxh3 g6 38. R4e2 $18 (38. Be6 Raa7 $18)) 37. cxd5 {[%emt 0:00:08]} Bxf1 {[%emt 0:00:09]} 38. Rxf1 {[%emt 0:00:22]} Rxa2 {[%emt 0:02:41][%mdl 4096] Endgame. KRR-KRR} 39. Rd1 {[%emt 0:01:02]} Rd7 {[%emt 0:00:06]} 40. Re3 {[%emt 0:00:43]} Kf7 {[%emt 0:00:15]} 41. Rb3 {[%emt 0:01:13]} Ra5 {[%emt 0:00:20]} 42. Rbd3 {[%emt 0:00:06]} f5 {[%emt 0:01:34]} 43. Rf3 {[%emt 0:03:18]} Kf6 {[%emt 0:00:29]} ({Weaker is} 43... Raxd5 44. Rxd5 Rxd5 45. Rxf5+ Ke6 46. Rf2 $15) (43... Rdxd5 44. Rxd5 Rxd5 45. Rxf5+ Ke6 46. Rf2 $17) 44. Rdf1 {[%emt 0:00:36]} g6 {[%emt 0:00:06]} ({Stronger than} 44... Raxd5 45. Rxf5+ Ke6 46. Rf8 $15) 45. g4 {[%emt 0:00:33]} f4 {[%emt 0:00:07] Weighted Error Value: White=0.43/Black=0.28 (precise) .  Loses game:     	White=1     	Black=1      Missed win:     	White=1     	---        Mistake:       	White=1     	Black=1      Inaccurate:     	White=3     	Black=2      OK:         	White=4     	Black=20     Best:        	White=3     	Black=5} ({Less strong is} 45... Raxd5 46. gxf5 g5 47. Rh3 $15) 0-1